bitfinex/quotes_SOLUSD_20260213
["timestamp","ask_amount","ask_price","bid_price","bid_amount"]
[1771005314450,10.41376433,84.47,84.434,0.70323858]
[1771005314451,0.41248232,84.469,84.434,0.70323858]
[1771005314656,0.41248232,84.469,84.436,0.70323858]
[1771005314657,11.83880286,84.468,84.436,0.70323858]
[1771005314866,11.83880286,84.468,84.435,11.84342985]
[1771005314867,10.41376433,84.48,84.441,0.70323858]
[1771005315045,22.25092585,84.48,84.441,0.70323858]
[1771005315769,0.41086633,84.479,84.441,0.70323858]
[1771005316066,51.84372888,84.48,84.432,47.88]
[1771005316067,0.41086633,84.469,84.433,0.70323858]
[1771005316264,0.41086633,84.469,84.433,11.84371039]
[1771005316468,10.41376433,84.47,84.434,0.70323858]
[1771005316768,11.8386627,84.469,84.434,0.70323858]
[1771005316968,10.8238399,84.46,84.432,47.88]
[1771005317164,0.41007557,84.459,84.432,47.88]
[1771005317967,10.41376433,84.45,84.432,47.88]
[1771005318146,0.41007557,84.459,84.432,47.88]
[1771005318350,10.41376433,84.46,84.434,0.70323858]
[1771005319071,50.71729252,84.483,84.417,0.70323858]
[1771005319072,10.41376433,84.45,84.417,0.70323858]
[1771005319571,10.41376433,84.44,84.419,0.70323858]
[1771005319754,0.40775158,84.449,84.419,0.70323858]
[1771005319960,10.82151591,84.44,84.41,0.70323858]
[1771005320159,0.40775158,84.439,84.41,0.70323858]
[1771005320856,10.41376433,84.44,84.41,0.70323858]
[1771005321451,11.84286881,84.439,84.41,0.70323858]
[1771005321751,11.84286881,84.439,84.368,52.02829557]
[1771005321752,11.84010075,84.459,84.421,0.70323858]
[1771005321967,11.7818686,84.459,84.421,0.70323858]
[1771005322975,11.7818686,84.459,84.422,11.8452536]
[1771005323179,11.7818686,84.459,84.423,0.70323858]
[1771005326469,11.7818686,84.459,84.431,0.70323858]
[1771005327465,0.40263831,84.439,84.407,0.70323858]
[1771005327665,41.38202962,84.459,84.39,10.41376433]
[1771005327666,10.41376433,84.42,84.399,0.70323858]
[1771005328468,11.84567455,84.419,84.391,0.70323858]
[1771005328664,10.41376433,84.44,84.401,0.70323858]
[1771005328985,11.84215661,84.445,84.411,0.70323858]
[1771005329488,11.84073785,84.455,84.421,0.70323858]
[1771005330383,11.83874229,84.469,84.431,0.70323858]
[1771005330684,11.83874229,84.469,84.442,0.70323858]
[1771005330985,0.39740756,84.468,84.435,11.84341904]
[1771005331285,10.40259007,84.45,84.424,0.71166472]
[1771005331481,10.79999763,84.45,84.412,0.71166472]
[1771005331681,10.40259007,84.44,84.412,0.71166472]
[1771005331881,10.40259007,84.43,84.404,0.71166472]
[1771005332687,11.84427151,84.429,84.404,0.71166472]
[1771005333399,11.84300907,84.438,84.404,0.71166472]
[1771005333584,11.84300907,84.438,84.406,0.71166472]
[1771005333772,11.84300907,84.438,84.41,10.40259007]
[1771005333972,11.84300907,84.438,84.41,0.71166472]
[1771005334181,11.84300907,84.438,84.395,48.02]
[1771005334182,0.39281747,84.429,84.395,48.02]
[1771005334489,10.40259007,84.42,84.395,48.02]
[1771005334873,11.84567455,84.419,84.395,48.73166472]
[1771005335987,12.2355149,84.419,84.395,48.02]
[1771005336206,12.2355149,84.419,84.38,10.40259007]
[1771005336207,10.40259007,84.41,84.38,0.71166472]
[1771005336379,10.79243042,84.41,84.38,0.71166472]
[1771005337493,11.84707791,84.409,84.38,0.71166472]
[1771005338195,10.40259007,84.4,84.374,11.85191452]
[1771005339095,11.84707791,84.409,84.381,0.65815386]
[1771005339799,11.84707791,84.409,84.368,48.08]
[1771005339800,40.01301422,84.43,84.391,0.65815386]
[1771005340386,0.38270898,84.428,84.391,0.65815386]
[1771005340593,10.78529905,84.42,84.391,0.65815386]
[1771005341302,10.78529905,84.42,84.383,48.08]
[1771005341303,0.38132819,84.409,84.383,48.08]
[1771005341604,0.38132819,84.409,84.36,29.63463303]
[1771005341605,0.38132819,84.399,84.366,0.65815386]
[1771005341982,11.848622,84.398,84.368,0.65815386]
[1771005342592,10.40259007,84.39,84.368,0.65815386]
[1771005342900,0.37996564,84.397,84.368,0.65815386]
[1771005343712,11.84890279,84.396,84.368,0.65815386]
[1771005343996,11.84890279,84.396,84.355,48.08]
[1771005343997,11.84838213,84.4,84.371,0.65815386]
[1771005344209,11.84707791,84.409,84.371,0.65815386]
[1771005344506,11.84707791,84.409,84.37,10.40259007]
[1771005344507,11.84707791,84.409,84.381,0.65815386]
[1771005345105,41.4647727,84.409,84.381,0.65815386]
[1771005345482,10.40259007,84.41,84.381,0.65815386]
[1771005346902,41.46231667,84.414,84.381,0.65815386]
[1771005347097,11.84637619,84.414,84.381,0.65815386]
[1771005348209,10.40259007,84.43,84.391,0.65815386]
[1771005348384,10.40259007,84.43,84.382,11.85086866]
[1771005348385,10.40259007,84.44,84.411,0.65815386]
[1771005348580,11.84160666,84.448,84.411,0.65815386]
[1771005348581,41.44562333,84.448,84.411,0.65815386]
[1771005348904,10.40259007,84.44,84.411,0.65815386]
[1771005349109,10.77341944,84.44,84.411,0.65815386]
[1771005349814,10.40259007,84.42,84.385,0.65815386]
[1771005350606,10.40259007,84.42,84.384,48.08]
[1771005350607,10.40259007,84.43,84.391,0.65815386]
[1771005350902,59.20803334,84.448,84.386,11.85030692]
[1771005350903,11.84427151,84.429,84.401,0.65815386]
[1771005351281,11.84341118,84.436,84.401,0.65815386]
[1771005353700,11.84341118,84.436,84.402,11.84806047]
[1771005353898,11.84341118,84.436,84.403,0.65815386]
[1771005355307,0.36353033,84.435,84.403,0.65815386]
[1771005355507,10.40259007,84.43,84.403,0.65815386]
[1771005356105,41.4549503,84.429,84.403,0.65815386]
[1771005356482,0.3623616,84.428,84.396,0.65815386]
[1771005357492,11.84455209,84.427,84.396,0.65815386]
[1771005358107,11.84455209,84.427,84.398,0.65815386]
[1771005358410,11.84455209,84.427,84.401,0.65815386]
[1771005360391,46.24,84.444,84.384,77.70626484]
[1771005360392,0.35781734,84.446,84.411,0.65815386]
[1771005360608,10.40259007,84.44,84.411,0.65815386]
[1771005360909,11.84090559,84.453,84.421,0.65388686]
[1771005361112,0.3556262,84.464,84.421,0.65388686]
[1771005361307,0.3556262,84.488,84.451,0.65388686]
[1771005361499,0.38835714,84.485,84.451,0.62115592]
[1771005361898,11.83656076,84.484,84.451,0.62115592]
[1771005362095,11.83606551,84.488,84.46,10.40259007]
[1771005362413,11.83606551,84.488,84.452,11.8410458]
[1771005362414,11.83331134,84.508,84.48,10.40259007]
[1771005362614,11.83331134,84.508,84.461,48.18]
[1771005362615,0.38729827,84.499,84.461,48.18]
[1771005362910,0.38729827,84.499,84.452,41.4436603]
[1771005362911,11.83270322,84.512,84.48,10.40259007]
[1771005363093,0.386252,84.509,84.47,10.40259007]
[1771005363293,0.386252,84.499,84.47,10.40259007]
[1771005363490,10.78884207,84.49,84.461,0.65388686]
[1771005363800,10.78884207,84.49,84.396,47.39551372]
[1771005363801,10.40259007,84.5,84.471,0.65388686]
[1771005364005,11.83445957,84.499,84.471,0.65388686]
[1771005364604,11.83445957,84.499,84.472,0.65388686]
[1771005364808,11.8330592,84.509,84.481,0.65388686]
[1771005365802,11.83221913,84.515,84.481,0.65388686]
[1771005366000,11.83221913,84.515,84.462,48.18]
[1771005366001,0.38318808,84.499,84.472,0.65388686]
[1771005367216,0.38318808,84.499,84.46,58.58259007]
[1771005367217,0.38318808,84.499,84.461,0.65388686]
[1771005367514,0.38219079,84.509,84.471,0.65388686]
[1771005367818,11.83445957,84.499,84.471,0.65388686]
[1771005369618,41.42060851,84.499,84.471,0.65388686]
[1771005369919,11.83445957,84.499,84.471,0.65388686]
[1771005370217,11.83445957,84.499,84.473,0.65388686]
[1771005371315,11.8330592,84.509,84.481,0.65388686]
[1771005371908,11.83207913,84.516,84.483,0.65388686]
[1771005372318,41.41227696,84.516,84.483,0.65388686]
[1771005375219,10.40259007,84.51,84.483,0.65388686]
[1771005375423,0.37460722,84.499,84.465,0.65388686]
[1771005376121,11.83445957,84.499,84.467,0.65388686]
[1771005376425,0.37370685,84.498,84.463,0.65388686]
[1771005376927,11.8330592,84.509,84.481,0.65388686]
[1771005377230,10.40259007,84.52,84.491,0.65388686]
[1771005377231,11.83187544,84.518,84.491,0.65388686]
[1771005378130,11.83039939,84.528,84.493,0.65388686]
[1771005378506,41.40639787,84.528,84.493,0.65388686]
[1771005378702,41.77833444,84.528,84.493,0.65388686]
[1771005379810,0.37020165,84.527,84.493,0.65388686]
[1771005380209,46.46,84.535,84.493,0.65388686]
[1771005380210,10.77279172,84.52,84.493,0.65388686]
[1771005380423,41.4073776,84.526,84.466,29.59755265]
[1771005380424,0.37020165,84.509,84.478,0.65388686]
[1771005381534,11.83319922,84.508,84.478,0.65388686]
[1771005382520,41.41619727,84.508,84.478,0.65388686]
[1771005383217,41.41619727,84.508,84.481,0.65388686]
[1771005383426,11.83319922,84.508,84.481,0.65388686]
[1771005384838,11.83319922,84.508,84.48,10.40259007]
[1771005384839,11.83319922,84.508,84.483,0.65388686]
[1771005385009,11.83179914,84.518,84.491,0.65388686]
[1771005385736,11.83081928,84.525,84.492,0.65388686]
[1771005385918,0.36526329,84.524,84.493,0.65388686]
[1771005386252,10.40259007,84.51,84.481,11.83689249]
[1771005386416,0.36526329,84.519,84.482,0.65388686]
[1771005386614,0.36526329,84.509,84.482,0.65388686]
[1771005387114,10.40259007,84.51,84.482,0.65388686]
[1771005387421,10.76705775,84.51,84.482,0.65388686]
[1771005387621,10.40259007,84.51,84.482,0.65388686]
[1771005387934,22.23560197,84.51,84.483,11.83670087]
[1771005388123,29.57704821,84.525,84.491,0.65388686]
[1771005388834,11.83095925,84.524,84.491,0.65388686]
[1771005389938,41.40835738,84.524,84.491,0.65388686]
[1771005390235,10.40259007,84.51,84.483,0.65388686]
[1771005390753,10.40259007,84.52,84.483,0.65388686]
[1771005390914,59.14389907,84.54,84.501,0.63419618]
[1771005390915,10.38592894,84.54,84.501,0.63419618]
[1771005391223,29.56922028,84.548,84.511,0.63419618]
[1771005391423,0.3606455,84.547,84.511,0.63419618]
[1771005391631,29.56922028,84.548,84.511,0.63419618]
[1771005392036,10.58592894,84.55,84.531,0.63419618]
[1771005392037,0.2,84.55,84.531,0.63419618]
[1771005392221,11.82746099,84.549,84.531,0.63419618]
[1771005392426,0.35991048,84.548,84.511,0.63419618]
[1771005392631,12.02739699,84.55,84.521,0.63419618]
[1771005393128,12.02739699,84.55,84.531,0.63419618]
[1771005393129,0.2,84.55,84.531,0.63419618]
[1771005393320,0.2,84.55,84.511,41.41472707]
[1771005393321,41.38387683,84.574,84.541,0.63419618]
[1771005393535,41.94306117,84.574,84.541,0.63419618]
[1771005393837,41.38387683,84.574,84.541,0.63419618]
[1771005394051,10.38592894,84.57,84.541,0.63419618]
[1771005394339,11.82466388,84.569,84.541,0.63419618]
[1771005395231,10.38592894,84.57,84.543,0.63419618]
[1771005395422,11.82186809,84.589,84.561,0.63419618]
[1771005395925,0.2,84.59,84.561,0.63419618]
[1771005396122,11.82186809,84.589,84.561,0.63419618]
[1771005398743,11.82186809,84.589,84.563,0.6837675]
[1771005402349,11.82186809,84.589,84.556,48.16]
[1771005402350,0.55372311,84.579,84.556,48.16]
[1771005403058,11.82340561,84.578,84.552,0.6837675]
[1771005405561,0.55220278,84.577,84.552,0.6837675]
[1771005406753,0.2,84.59,84.561,0.6837675]
[1771005406958,0.2,84.59,84.571,0.6837675]
[1771005406959,11.82186809,84.589,84.571,0.6837675]
[1771005409149,11.82186809,84.589,84.559,48.8637675]
[1771005409150,0.55025356,84.588,84.559,48.8637675]
[1771005409347,10.38592894,84.58,84.559,48.18]
[1771005409745,10.38592894,84.58,84.551,0.6837675]
[1771005410555,10.93570614,84.58,84.551,0.6837675]
[1771005410758,11.82326582,84.579,84.551,0.6837675]
[1771005411552,11.82326582,84.579,84.539,29.57193383]
[1771005411553,0.2,84.59,84.561,0.6837675]
[1771005411750,11.1352402,84.59,84.561,0.6837675]
[1771005411941,0.2,84.59,84.561,0.6837675]
[1771005412255,11.82224184,84.587,84.561,0.6837675]
[1771005414964,0.2,84.59,84.562,0.6837675]
[1771005415142,0.2,84.59,84.571,0.6837675]
[1771005415461,0.2,84.59,84.572,0.6837675]
[1771005416341,0.2,84.61,84.581,0.6837675]
[1771005416544,41.56634877,84.61,84.591,0.6837675]
[1771005416845,51.95227771,84.61,84.591,0.6837675]
[1771005419458,41.56634877,84.61,84.591,0.6837675]
[1771005419961,1e-08,84.62,84.601,0.6837675]
[1771005420265,0.62767051,84.639,84.602,0.6837675]
[1771005420964,11.81649236,84.628,84.602,0.6837675]
[1771005422748,0.67382552,84.609,84.551,0.61781746]
[1771005422951,10.38592894,84.57,84.542,0.61781746]
[1771005423354,0.67382552,84.579,84.542,0.61781746]
[1771005423655,10.38592894,84.57,84.542,0.61781746]
[1771005424056,11.05975446,84.57,84.542,0.61781746]
[1771005425163,11.82466388,84.569,84.542,0.61781746]
[1771005425761,11.82466388,84.569,84.544,0.61781746]
[1771005427056,11.82466388,84.569,84.534,48.14]
[1771005427057,0.67382552,84.559,84.534,48.14]
[1771005427258,0.67382552,84.539,84.501,0.61781746]
[1771005427656,0.67382552,84.539,84.511,0.61781746]
[1771005428257,10.38592894,84.54,84.511,0.61781746]
[1771005429176,11.82886005,84.539,84.511,0.61781746]
[1771005430472,0.67382552,84.538,84.511,0.61781746]
[1771005430875,10.38592894,84.53,84.504,12.45146439]
[1771005431572,22.21467002,84.54,84.511,0.61781746]
[1771005431771,10.38592894,84.53,84.505,48.28]
[1771005432275,10.38592894,84.53,84.506,0.61781746]
[1771005432472,22.88849554,84.54,84.506,0.61781746]
[1771005433261,12.50282549,84.538,84.506,0.61781746]
[1771005433465,12.50282549,84.538,84.508,0.61781746]
[1771005433982,11.82899997,84.538,84.508,0.61781746]
[1771005434192,10.38592894,84.53,84.508,0.61781746]
[1771005435571,22.21617517,84.53,84.508,0.61781746]
[1771005437278,10.38592894,84.53,84.508,0.61781746]
[1771005438385,11.83025943,84.529,84.508,0.61781746]
[1771005438886,10.38592894,84.53,84.508,0.61781746]
[1771005440390,0.67382552,84.528,84.501,48.32]
[1771005440594,11.05975446,84.52,84.501,48.32]
[1771005440968,10.38592894,84.52,84.501,48.93781746]
[1771005441167,10.38592894,84.52,84.501,0.61781746]
[1771005441572,11.83133012,84.522,84.501,0.61781746]
[1771005441981,10.38592894,84.53,84.502,11.83403943]
[1771005442168,11.8291399,84.537,84.503,0.61781746]
[1771005442368,10.38592894,84.53,84.503,0.61781746]
[1771005442878,0.67382552,84.559,84.521,0.61781746]
[1771005443562,0.67382552,84.557,84.521,0.61781746]
[1771005443764,10.38592894,84.55,84.521,0.61781746]
[1771005444770,0.67382552,84.551,84.521,0.61781746]
[1771005445379,0.67382552,84.539,84.506,0.61781746]
[1771005445581,12.50419762,84.529,84.506,0.61781746]
[1771005446564,0.67382552,84.528,84.495,0.61781746]
[1771005447579,11.83053935,84.527,84.495,0.61781746]
[1771005447785,0.67382552,84.526,84.496,11.83487975]
[1771005448171,0.67382552,84.526,84.497,0.61781746]
[1771005449164,0.67382552,84.526,68.26,8.32054737]
[1771005449165,0.67382552,84.538,84.501,0.61781746]
[1771005449365,0.67382552,84.546,84.511,0.61781746]
[1771005449560,0.67382552,84.545,84.511,0.61781746]
[1771005449771,0.67382552,84.545,84.52,10.38592894]
[1771005449977,11.82733694,84.55,84.521,0.61781746]
[1771005450479,22.21326588,84.55,84.521,0.61781746]
[1771005450881,11.82609823,84.559,84.531,0.66463363]
[1771005451085,41.39125392,84.559,84.531,0.66463363]
[1771005451473,47.28754288,84.589,84.531,0.66463363]
[1771005451474,0.67242984,84.567,84.531,0.66463363]
[1771005451671,11.82508336,84.566,84.531,0.66463363]
[1771005451873,11.82508336,84.566,84.532,11.82983958]
[1771005452074,11.82508336,84.566,84.533,0.66463363]
[1771005452469,22.21050245,84.57,84.533,0.66463363]
[1771005452871,22.20264118,84.57,84.533,0.66463363]
[1771005453070,22.87507102,84.57,84.533,0.66463363]
[1771005454287,22.87507102,84.57,84.541,0.66463363]
[1771005454986,0.67242984,84.569,84.541,0.66463363]
[1771005456784,0.62963842,84.567,84.541,0.66463363]
[1771005456982,4.50472863,84.56,84.535,0.65017715]
[1771005457171,0.62963842,84.56,84.535,0.65017715]
[1771005458486,0.62963842,84.567,84.535,0.65017715]
[1771005458885,11.82431657,84.572,84.541,0.65017715]
[1771005459091,0.62963842,84.572,84.541,0.65017715]
[1771005459275,11.82326582,84.579,84.541,0.65017715]
[1771005459276,0.62963842,84.578,84.541,0.65017715]
[1771005459476,0.62963842,84.578,84.551,0.65017715]
[1771005460596,0.62963842,84.576,84.551,0.65017715]
[1771005462481,12.45346342,84.575,84.551,0.65017715]
[1771005462681,0.62963842,84.574,84.551,0.65017715]
[1771005464293,0.62963842,84.569,84.546,48.5]
[1771005464797,0.62963842,84.567,84.538,0.65017715]
[1771005465088,0.62963842,84.567,84.539,0.65017715]
[1771005465279,11.82298624,84.581,84.551,0.65017715]
[1771005465475,11.82298624,84.581,84.551,48.56]
[1771005465679,11.82298624,84.581,84.552,0.65017715]
[1771005466375,11.82248818,84.585,84.552,0.65017715]
[1771005467596,11.82248818,84.585,84.561,0.65017715]
[1771005469693,0.62963842,84.585,84.561,0.65017715]
[1771005470195,0.62963842,84.579,84.551,48.54]
[1771005470490,0.62963842,84.579,84.552,0.65017715]
[1771005471076,0.62963842,84.588,84.552,0.65017715]
[1771005471591,3.87509021,84.58,84.552,0.65017715]
[1771005471794,11.82340561,84.578,84.552,0.65017715]
[1771005471991,11.82340561,84.578,84.533,29.57412599]
[1771005471992,0.62963842,84.569,84.54,3.87509021]
[1771005472197,0.62963842,84.569,84.538,11.82890844]
[1771005472385,0.62963842,84.569,84.538,12.47908559]
[1771005472690,0.62963842,84.569,84.541,0.65017715]
[1771005473291,41.38191964,84.578,84.541,0.65017715]
[1771005473496,0.62963842,84.576,84.541,0.65017715]
[1771005474200,4.50472863,84.57,84.542,0.65017715]
[1771005474699,3.87509021,84.57,84.542,0.65017715]
[1771005474998,0.62963842,84.569,84.542,0.65017715]
[1771005475590,0.62963842,84.569,84.534,49.21017715]
[1771005475795,0.62963842,84.559,84.534,48.56]
[1771005475995,0.62963842,84.559,84.528,0.65017715]
[1771005476792,0.62963842,84.559,84.526,48.62]
[1771005476793,0.62963842,84.549,84.526,48.62]
[1771005477598,0.62963842,84.549,84.513,0.65017715]
[1771005478296,0.62963842,84.549,84.514,11.83235913]
[1771005478678,0.62963842,84.549,84.515,0.65017715]
[1771005479701,0.62963842,84.548,84.517,0.65017715]
[1771005481006,11.82755996,84.549,84.521,0.62229187]
[1771005481187,0.66038865,84.559,84.521,0.62229187]
[1771005482001,3.87509021,84.55,84.521,0.62229187]
[1771005482202,0.66038865,84.549,84.521,0.62229187]
[1771005482407,0.66038865,84.539,84.513,0.62229187]
[1771005482905,0.66038865,84.539,84.514,0.62229187]
[1771005483817,0.66038865,84.537,84.511,48.66]
[1771005484305,0.66038865,84.529,84.511,48.66]
[1771005484692,11.82899997,84.538,84.511,48.66]
[1771005484693,11.82899997,84.538,84.512,0.62229187]
[1771005485088,12.48938862,84.538,84.512,0.62229187]
[1771005486005,12.48938862,84.538,84.511,48.66]
[1771005486006,11.82765877,84.548,84.514,0.62229187]
[1771005486587,0.66038865,84.547,84.514,0.62229187]
[1771005487403,11.82765877,84.548,84.521,0.62229187]
[1771005487608,0.66038865,84.547,84.521,0.62229187]
[1771005488507,11.82788068,84.546,84.521,0.62229187]
[1771005488909,11.82788068,84.546,84.522,0.62229187]
[1771005490212,3.87509021,84.56,84.522,0.62229187]
[1771005490716,59.1115181,84.586,84.541,0.62229187]
[1771005490717,11.82326582,84.579,84.541,0.62229187]
[1771005491384,0.66038865,84.578,84.541,0.62229187]
[1771005491591,3.87509021,84.57,84.541,0.62229187]
[1771005491897,0.66038865,84.569,84.541,0.62229187]
[1771005492092,0.66038865,84.559,84.531,0.62229187]
[1771005493009,0.66038865,84.559,84.532,11.82983958]
[1771005493208,0.66038865,84.559,84.533,0.62229187]
[1771005493387,12.48558177,84.566,84.541,0.62229187]
[1771005493591,11.82519312,84.566,84.541,0.62229187]
[1771005493997,12.48558177,84.566,84.541,0.62229187]
[1771005494210,11.82519312,84.566,84.541,0.62229187]
[1771005494393,0.66038865,84.565,84.541,0.62229187]
[1771005495315,3.87509021,84.57,84.541,0.62229187]
[1771005495501,11.82466388,84.569,84.543,0.62229187]
[1771005496997,0.66038865,84.568,84.543,0.62229187]
[1771005497918,11.82466388,84.569,84.543,0.62229187]
[1771005498519,11.8245682,84.57,84.543,0.62229187]
[1771005498716,11.8245682,84.57,84.536,0.62229187]
[1771005498717,3.87509021,84.56,84.536,0.62229187]
[1771005499017,0.66038865,84.562,84.536,0.62229187]
[1771005499402,0.66038865,84.569,84.541,0.62229187]
[1771005500018,0.66038865,84.567,84.541,0.62229187]
[1771005500499,0.66038865,84.577,84.541,0.62229187]
[1771005500712,0.66038865,84.587,84.551,0.62229187]
[1771005500921,3.87509021,84.58,84.551,0.62229187]
[1771005501108,0.66038865,84.579,84.551,0.62229187]
[1771005501703,0.66038865,84.569,84.536,0.62229187]
[1771005501904,0.66038865,84.567,84.538,0.62229187]
[1771005502223,0.66038865,84.567,84.54,3.87509021]
[1771005502423,0.66038865,84.567,84.541,0.62229187]
[1771005503523,11.82508336,84.566,84.541,0.62229187]
[1771005503826,3.87509021,84.57,84.541,0.62229187]
[1771005503827,15.69967114,84.57,84.542,0.62229187]
[1771005504009,11.82458093,84.57,84.542,0.62229187]
[1771005504203,0.66038865,84.569,84.542,0.62229187]
[1771005505519,11.8248037,84.568,84.542,0.62229187]
[1771005505721,12.48519235,84.568,84.542,0.62229187]
[1771005506717,12.48519235,84.568,84.544,0.62229187]
[1771005506918,11.82419663,84.573,84.544,0.62229187]
[1771005507121,11.82284177,84.583,84.551,0.62229187]
[1771005507517,0.66038865,84.582,84.551,0.62229187]
[1771005508617,0.66038865,84.582,84.553,0.62229187]
[1771005508822,11.82298624,84.581,84.553,0.62229187]
[1771005509831,0.66038865,84.579,84.553,0.62229187]
[1771005511031,3.87509021,84.57,84.553,0.62229187]
[1771005511235,0.65952623,84.569,84.546,0.66534403]
[1771005511709,0.65952623,84.577,84.546,0.66534403]
[1771005512130,3.87509021,84.58,84.546,0.66534403]
[1771005512315,0.65952623,84.579,84.551,0.66534403]
[1771005512713,11.82291412,84.582,84.551,0.66534403]
[1771005513135,0.65952623,84.579,84.553,0.66534403]
[1771005513435,11.82312603,84.58,84.545,29.57005145]
[1771005513436,0.65952623,84.569,84.545,0.66534403]
[1771005514539,0.65952623,84.569,84.546,0.66534403]
[1771005514540,11.8248037,84.568,84.546,0.66534403]
[1771005514941,0.65952623,84.569,84.546,0.66534403]
[1771005515317,0.65952623,84.575,84.546,0.66534403]
[1771005517452,11.82370905,84.576,84.546,0.66534403]
[1771005517625,0.63093204,84.58,84.551,0.63598021]
[1771005517827,0.63093204,84.579,84.551,0.63598021]
[1771005519948,0.63093204,84.577,84.551,0.63598021]
[1771005521946,0.63093204,84.577,84.553,0.63598021]
[1771005523550,0.63093204,84.575,84.547,0.63598021]
[1771005523724,0.63093204,84.569,84.536,11.82922895]
[1771005524045,0.63093204,84.569,84.536,12.46520916]
[1771005524220,0.63093204,84.569,84.537,0.63598021]
[1771005525746,0.63093204,84.567,84.537,0.63598021]
[1771005525934,0.63093204,84.559,84.537,0.63598021]
[1771005526756,0.63093204,84.559,84.538,11.82899997]
[1771005526928,0.63093204,84.559,84.538,12.46498018]
[1771005527229,0.63093204,84.559,84.539,0.63598021]
[1771005527632,0.63093204,84.559,84.528,49.06]
[1771005528129,0.63093204,84.557,84.528,49.69598021]
[1771005528453,0.63093204,84.539,84.516,0.63598021]
[1771005528947,0.63093204,84.529,84.49,3.87290261]
[1771005529140,0.63093204,84.519,84.493,0.63598021]
[1771005529543,0.63093204,84.499,84.469,0.63598021]
[1771005529850,4.61729252,84.536,84.46,4.07290261]
[1771005529851,0.63093204,84.506,84.471,0.63598021]
[1771005530355,11.83361931,84.505,84.473,0.63598021]
[1771005531849,0.63093204,84.499,84.473,0.63598021]
[1771005532436,0.63093204,84.497,84.465,0.63598021]
[1771005533756,11.83459963,84.498,84.465,0.63598021]
[1771005534160,12.46553167,84.498,84.465,0.63598021]
[1771005535549,12.46553167,84.498,84.467,0.63598021]
[1771005536663,11.83459963,84.498,84.467,0.63598021]
[1771005537163,3.87290261,84.51,84.481,0.63598021]
[1771005537355,11.83338812,84.507,84.481,0.63598021]
[1771005538263,0.63093204,84.517,84.483,0.63598021]
[1771005538565,0.63093204,84.515,84.483,0.63598021]
[1771005538745,3.87290261,84.51,84.483,0.63598021]
[1771005539040,4.50383465,84.51,84.483,0.63598021]
[1771005539670,3.87290261,84.49,84.46,4.07290261]
[1771005539844,0.63093204,84.479,84.432,0.63598021]
[1771005540046,0.63093204,84.469,84.439,0.63598021]
[1771005541746,11.83880286,84.468,84.439,0.63598021]
[1771005542365,3.87290261,84.46,84.439,0.63598021]
[1771005542652,3.87290261,84.46,84.42,0.2]
[1771005542653,0.51652699,84.449,84.42,0.2]
[1771005542859,3.87290261,84.44,84.42,0.2]
[1771005543056,1e-08,84.43,84.42,0.2]
[1771005543255,1e-08,84.43,84.409,0.65069981]
[1771005543256,3.87290261,84.43,84.409,0.65069981]
[1771005543462,3.87290261,84.43,84.402,0.65069981]
[1771005543651,1e-08,84.429,84.402,0.65069981]
[1771005544547,1e-08,84.429,84.411,0.65069981]
[1771005545166,1e-08,84.429,84.412,0.65069981]
[1771005545349,3.87290261,84.45,84.413,0.65069981]
[1771005545751,12.3568836,84.455,84.415,0.65069981]
[1771005546053,3.87290261,84.45,84.415,0.65069981]
[1771005546254,11.83884037,84.468,84.431,0.65069981]
[1771005546558,3.87290261,84.45,84.421,0.65069981]
[1771005546860,41.43584752,84.468,84.421,0.65069981]
[1771005546861,3.87290261,84.44,84.421,0.65069981]
[1771005547054,3.87290261,84.44,84.41,12.04690158]
[1771005547055,0.51619177,84.429,84.41,0.2]
[1771005547256,3.87290261,84.44,84.411,0.65069981]
[1771005547861,11.84286881,84.439,84.413,0.65069981]
[1771005548069,29.6039233,84.449,84.421,0.65069981]
[1771005548070,11.84146644,84.449,84.421,0.65069981]
[1771005552070,0.51587258,84.448,84.421,0.65069981]
[1771005552970,0.51587258,84.448,84.412,0.65069981]
[1771005553162,11.84146644,84.449,84.411,0.65069981]
[1771005553466,11.83872496,84.469,84.441,0.65069981]
[1771005561880,12.35326592,84.474,84.441,0.65069981]
[1771005562187,3.87290261,84.47,84.441,0.65069981]
[1771005562689,0.51524201,84.469,84.441,0.65069981]
[1771005562859,0.51518346,84.449,84.415,0.65069981]
[1771005563184,0.51518346,84.429,84.392,0.65069981]
[1771005563362,3.87290261,84.42,84.392,0.65069981]
[1771005563683,3.84015777,84.42,84.392,0.65069981]
[1771005563863,0.31528924,84.431,84.392,0.65069981]
[1771005564065,15.71703384,84.43,84.394,0.65069981]
[1771005564265,3.87290261,84.42,84.394,0.65069981]
[1771005564461,4.18819185,84.42,84.394,0.65069981]
[1771005565081,11.84413123,84.43,84.401,0.65069981]
[1771005565285,15.71703384,84.43,84.401,0.65069981]
[1771005565685,11.84413123,84.43,84.401,0.65069981]
[1771005565880,11.84413123,84.43,84.391,0.65069981]
[1771005566079,11.84413123,84.43,84.401,0.65069981]
[1771005566389,15.71703384,84.43,84.401,0.65069981]
[1771005566973,29.60687601,84.44,84.401,0.65069981]
[1771005566974,11.84347707,84.435,84.401,0.65069981]